bitfinex-derivatives/quotes_BTCF0:USTF0_20241203
["timestamp","ask_amount","ask_price","bid_price","bid_amount"]
[1733185896899,0.20940006,95914.0,95913.0,0.412908]
[1733185897495,0.20940006,95914.0,95913.0,0.3608]
[1733185899206,0.21240006,95914.0,95913.0,0.3608]
[1733185899398,0.21340006,95914.0,95913.0,0.3608]
[1733185899600,0.21040006,95914.0,95913.0,0.3608]
[1733185899797,0.21340006,95914.0,95913.0,0.3608]
[1733185900409,0.21340006,95914.0,95913.0,0.412908]
[1733185900604,0.16129206,95914.0,95913.0,0.412908]
[1733185902902,0.16129206,95914.0,95913.0,0.544748]
[1733185903302,0.004,95914.0,95913.0,0.544748]
[1733185904396,0.003,95914.0,95913.0,0.5645074]
[1733185905303,0.052103,95923.0,95922.0,0.052102]
[1733185905512,0.052103,95923.0,95922.0,0.544742]
[1733185905805,0.2078411,95923.0,95922.0,0.544742]
[1733185906410,0.2108411,95923.0,95922.0,0.544742]
[1733185906800,0.2138411,95923.0,95922.0,0.545742]
[1733185910723,0.1617381,95923.0,95922.0,0.545742]
[1733185911304,0.2138411,95923.0,95922.0,0.545742]
[1733185919017,0.1617381,95923.0,95922.0,0.545742]
[1733185921004,0.1617381,95923.0,95922.0,0.3618]
[1733185921204,0.1617381,95923.0,95904.0,0.3608]
[1733185921205,0.052113,95905.0,95904.0,0.3608]
[1733185921405,0.104258,95898.0,95897.0,0.052117]
[1733185921607,0.05214,95898.0,95893.0,0.00156413]
[1733185921812,0.15739496,95898.0,95897.0,0.052118]
[1733185922311,0.052113,95906.0,95904.0,0.002]
[1733185922512,0.052113,95906.0,95905.0,0.052114]
[1733185922708,0.0314,95910.0,95909.0,0.052111]
[1733185922906,0.083511,95910.0,95909.0,0.052111]
[1733185923102,0.23889711,95910.0,95909.0,0.052111]
[1733185924213,0.24089711,95910.0,95909.0,0.052111]
[1733185925003,0.24089711,95910.0,95909.0,0.053111]
[1733185925211,0.24089711,95910.0,95909.0,0.001]
[1733185929115,0.24089711,95910.0,95909.0,0.053111]
[1733185929317,0.18878611,95910.0,95909.0,0.053111]
[1733185929617,0.24089711,95910.0,95909.0,0.053111]
[1733185930213,0.18878611,95910.0,95909.0,0.053111]
[1733185930415,0.24089711,95910.0,95909.0,0.001]
[1733185931617,0.24089711,95910.0,95909.0,0.053111]
[1733185931922,0.29303711,95910.0,95909.0,0.053111]
[1733185932622,0.24092611,95910.0,95909.0,0.053111]
[1733185933818,0.29303711,95910.0,95909.0,0.001]
[1733185934820,0.29303711,95910.0,95909.0,0.053112]
[1733185936220,0.24092611,95910.0,95909.0,0.053112]
[1733185936415,0.20952611,95910.0,95909.0,0.053112]
[1733185936719,0.002,95910.0,95909.0,0.053112]
[1733185937622,0.002,95910.0,95909.0,0.184872]
[1733185939123,0.05214,95922.0,95909.0,0.13276]
[1733185939323,0.05214,95926.0,95925.0,0.052103]
[1733185940421,0.05214,95928.0,95927.0,0.052102]
[1733185941815,0.052101,95929.0,95928.0,0.052101]
[1733185943823,0.059101,95929.0,95928.0,0.053101]
[1733185945724,0.059101,95929.0,95928.0,0.001]
[1733185946025,0.052113,95907.0,95906.0,0.054713]
[1733185946217,0.052112,95910.0,95909.0,0.052111]
[1733185946913,0.20947072,95910.0,95909.0,0.052111]
[1733185947526,0.20947072,95910.0,95909.0,0.053111]
[1733185947723,0.20947072,95910.0,95909.0,0.001]
[1733185947922,0.20947072,95910.0,95909.0,0.003]
[1733185948123,0.20947072,95910.0,95909.0,0.00267525]
[1733185948522,0.20947072,95910.0,95909.0,0.05478625]
[1733185949030,0.20947072,95910.0,95909.0,0.00267525]
[1733185949920,0.36587567,95910.0,95909.0,0.00267525]
[1733185954733,0.97456367,95910.0,95893.0,0.00156413]
[1733185954923,0.05212,95894.0,95893.0,0.00156413]
[1733185955325,0.20914284,95894.0,95893.0,0.00156413]
[1733185955626,0.052124,95885.0,95884.0,0.052125]
[1733185955839,0.0628,95893.0,95882.0,0.052126]
[1733185956219,0.15650874,95892.0,95882.0,0.052126]
[1733185957033,0.052125,95885.0,95882.0,0.052126]
[1733185957230,0.052125,95885.0,95882.0,0.059126]
[1733185957927,0.0628,95893.0,95882.0,0.007]
[1733185957928,0.052126,95883.0,95882.0,0.007]
[1733185958328,0.2088315,95883.0,95882.0,0.007]
[1733185958725,0.31312581,95883.0,95882.0,0.007]
[1733185959029,0.31312581,95883.0,95882.0,0.005]
[1733185959235,0.31312581,95883.0,95882.0,0.014]
[1733185959436,0.2088315,95883.0,95882.0,0.014]
[1733185959729,0.2098315,95883.0,95882.0,0.017]
[1733185960533,0.1577055,95883.0,95882.0,0.069126]
[1733185962039,0.001,95883.0,95882.0,0.069126]
[1733185964536,0.20944033,95883.0,95882.0,0.069126]
[1733185964838,0.20944033,95883.0,95882.0,0.017]
[1733185971638,0.20944033,95883.0,95882.0,0.3778]
[1733185971836,0.15731433,95883.0,95882.0,0.3778]
[1733185972038,0.15731433,95883.0,95882.0,0.429926]
[1733185972941,0.20944033,95883.0,95882.0,0.429926]
[1733185974644,0.15731433,95883.0,95882.0,0.429926]
[1733185974847,0.20944033,95883.0,95882.0,0.429926]
[1733185975138,0.001,95883.0,95882.0,0.429926]
[1733185975837,0.053126,95883.0,95882.0,0.429926]
[1733185977741,0.001,95883.0,95882.0,0.429926]
[1733185978643,0.15727878,95883.0,95882.0,0.429926]
[1733185979336,0.15727878,95883.0,95882.0,0.561566]
[1733185980441,0.0026,95900.0,95882.0,0.561566]
[1733185980747,0.052116,95900.0,95899.0,0.052116]
[1733185981249,0.20807465,95900.0,95899.0,0.052116]
[1733185981940,0.15595865,95900.0,95899.0,0.055116]
[1733185982349,0.052116,95900.0,95899.0,0.055116]
[1733185982649,0.20908281,95900.0,95899.0,0.055116]
[1733185983041,0.20908281,95900.0,95899.0,0.058116]
[1733185983549,0.20908281,95900.0,95899.0,0.006]
[1733185984548,0.20908281,95900.0,95879.0,0.0026]
[1733185984549,0.31335864,95900.0,95879.0,0.0026]
[1733185984742,0.31335864,95900.0,95876.0,0.3608]
[1733185984743,0.052128,95877.0,95876.0,0.3608]
[1733185985056,0.15697127,95877.0,95871.0,0.13164]
[1733185985342,0.3608,95885.0,95871.0,0.13164]
[1733185985343,0.052131,95872.0,95871.0,0.13164]
[1733185985548,0.052131,95872.0,95871.0,0.49244]
[1733185985846,0.20910227,95872.0,95871.0,0.544572]
[1733185986247,0.20910227,95872.0,95871.0,0.412932]
[1733185986749,0.21510227,95872.0,95871.0,0.413932]
[1733185987352,0.21510227,95872.0,95871.0,0.414932]
[1733185987646,0.16297127,95872.0,95871.0,0.414932]
[1733185988252,0.16297127,95872.0,95871.0,0.413932]
[1733185988446,0.17197127,95872.0,95871.0,0.414932]
[1733185989545,0.22410227,95872.0,95871.0,0.414932]
[1733185989756,0.22410227,95872.0,95871.0,0.3628]
[1733185990147,0.22410227,95872.0,95871.0,0.414932]
[1733185994454,0.17197127,95872.0,95871.0,0.414932]
[1733185998859,0.22410227,95872.0,95871.0,0.414932]
[1733185999551,0.17197127,95872.0,95871.0,0.546612]
[1733186000446,0.17197127,95872.0,95871.0,0.414932]
[1733186000651,0.22410227,95872.0,95871.0,0.546612]
[1733186001552,0.22410227,95872.0,95871.0,0.414932]
[1733186005067,0.17197127,95872.0,95871.0,0.414932]
[1733186011860,0.22410227,95872.0,95871.0,0.414932]
[1733186012158,0.22410227,95872.0,95871.0,0.546532]
[1733186013365,0.22410227,95872.0,95871.0,0.414932]
[1733186016465,0.22410227,95872.0,95871.0,0.002]
[1733186016466,0.35570227,95872.0,95871.0,0.002]
[1733186016665,0.35570227,95872.0,95869.0,9.389e-05]
[1733186016666,0.052132,95870.0,95869.0,9.389e-05]
[1733186016862,0.052132,95870.0,95869.0,5.389e-05]
[1733186017055,0.15544479,95870.0,95854.0,0.3608]
[1733186017260,0.052139,95860.0,95859.0,0.052138]
[1733186017967,0.05223289,95860.0,95859.0,0.052138]
[1733186018365,9.389e-05,95860.0,95854.0,0.3618]
[1733186018560,0.052141,95856.0,95855.0,0.052139]
[1733186018864,9.389e-05,95860.0,95859.0,0.052139]
[1733186019074,0.05223189,95860.0,95859.0,0.052139]
[1733186019961,0.06123189,95860.0,95859.0,0.053139]
[1733186020156,0.06123189,95860.0,95859.0,0.001]
[1733186020772,0.06823189,95860.0,95859.0,0.002]
[1733186035075,0.32888405,95860.0,95859.0,0.002]
[1733186035275,0.052149,95840.0,95825.0,0.02088092]
[1733186035485,0.052149,95840.0,95823.0,0.0026]
[1733186035486,0.052157,95824.0,95823.0,0.0026]
[1733186035669,0.052157,95824.0,95822.0,0.3608]
[1733186035670,0.052158,95823.0,95822.0,0.3608]
[1733186036369,0.20771706,95823.0,95822.0,0.3608]
[1733186036981,0.20771706,95823.0,95822.0,0.3638]
[1733186037577,0.15555906,95823.0,95822.0,0.3638]
[1733186037878,0.052156,95828.0,95825.0,0.052157]
[1733186038304,0.15612267,95827.0,95826.0,0.052156]
[1733186039288,0.052157,95826.0,95822.0,0.3628]
[1733186039787,0.15550104,95825.0,95824.0,0.052158]
[1733186039990,0.052154,95831.0,95829.0,0.052155]
[1733186040284,0.20775129,95831.0,95830.0,0.3608]
[1733186040587,0.052154,95831.0,95830.0,0.3608]
[1733186040977,0.31210274,95831.0,95830.0,0.3608]
[1733186041176,0.31810274,95831.0,95830.0,0.3608]
[1733186042084,0.32710274,95831.0,95830.0,0.001]
[1733186042583,0.052158,95823.0,95822.0,0.3608]
[1733186042978,0.20765182,95823.0,95822.0,0.3608]
[1733186043286,0.052166,95809.0,95806.0,0.0026]
[1733186043589,0.183766,95809.0,95800.0,0.1]
[1733186043785,0.05217,95801.0,95800.0,0.1]
[1733186044288,0.20777216,95801.0,95800.0,0.1]
[1733186044976,0.20787333,95801.0,95800.0,0.101]
[1733186045177,0.31225691,95801.0,95800.0,0.101]
[1733186045386,0.32125691,95801.0,95800.0,0.102]
[1733186045588,0.45285691,95801.0,95800.0,0.102]
[1733186046381,0.052178,95787.0,95786.0,0.3608]
[1733186046889,0.20942959,95787.0,95786.0,0.3608]
[1733186047574,0.15725159,95787.0,95770.0,0.054787]
[1733186047788,0.052184,95777.0,95775.0,0.3608]
[1733186048086,0.1316,95781.0,95776.0,0.02088554]
[1733186048277,0.052179,95786.0,95780.0,0.052181]
[1733186048478,0.1561689,95785.0,95783.0,0.05218]
[1733186048678,0.003,95787.0,95785.0,0.052179]
[1733186048879,0.003,95787.0,95786.0,0.0623]
[1733186049389,0.1591689,95787.0,95786.0,0.0623]
[1733186049783,0.003,95787.0,95786.0,0.0623]
[1733186050082,0.0026,95798.0,95797.0,0.052172]
[1733186050378,0.2084318,95798.0,95797.0,0.412972]
[1733186050578,0.1562598,95798.0,95797.0,0.412972]
[1733186050779,0.2084318,95798.0,95797.0,0.412972]
[1733186050981,0.1562598,95800.0,95799.0,0.052171]
[1733186051289,0.00010117,95801.0,95799.0,0.3608]
[1733186051489,0.00010117,95801.0,95800.0,0.183811]
[1733186051690,0.05227117,95801.0,95800.0,0.052171]
[1733186051893,0.05227117,95801.0,95800.0,0.13164]
[1733186053086,0.052171,95800.0,95799.0,0.3608]
[1733186053301,0.052171,95800.0,95791.0,0.13164]
[1733186053588,0.052175,95792.0,95791.0,0.13164]
[1733186053981,0.052178,95787.0,95784.0,0.4117616]
[1733186054188,0.052178,95787.0,95786.0,0.19394]
[1733186054389,0.052178,95787.0,95786.0,0.216118]
[1733186054587,0.052178,95788.0,95787.0,0.052177]
[1733186054883,0.052174,95794.0,95793.0,0.052173]
[1733186055091,0.052174,95794.0,95793.0,0.412973]
[1733186055287,0.20891759,95794.0,95793.0,0.412973]
[1733186055487,0.20891759,95794.0,95793.0,0.3608]
[1733186055700,0.20891759,95794.0,95793.0,0.412974]
[1733186056500,0.15674359,95794.0,95793.0,0.412974]
[1733186056805,0.00010117,95801.0,95793.0,0.544614]
[1733186056988,0.00010117,95801.0,95800.0,0.052171]
[1733186057397,0.20976591,95801.0,95800.0,0.052171]
[1733186057598,0.15759591,95801.0,95800.0,0.052171]
[1733186058095,0.052173,95797.0,95796.0,0.052173]
[1733186058893,0.052173,95797.0,95795.0,0.0328]
[1733186058894,0.01510117,95801.0,95800.0,0.052171]
[1733186059095,0.06727117,95801.0,95800.0,0.052171]
[1733186059295,0.22326489,95801.0,95800.0,0.052171]
[1733186059495,0.22426489,95801.0,95800.0,0.052171]
[1733186059694,0.21526489,95801.0,95800.0,0.052171]
[1733186059996,0.00710117,95801.0,95800.0,0.052171]
[1733186060893,0.01610117,95801.0,95800.0,0.052171]
[1733186061391,0.0026,95819.0,95818.0,0.052161]
[1733186061594,0.052156,95828.0,95818.0,0.412961]
[1733186061799,0.052156,95828.0,95827.0,0.412956]
[1733186061985,0.20953377,95828.0,95827.0,0.3608]
[1733186062194,0.05224574,95828.0,95811.0,0.052165]
[1733186062496,0.052166,95809.0,95808.0,0.412966]
[1733186062696,0.052166,95809.0,95808.0,0.3608]
[1733186063088,0.20778719,95809.0,95808.0,0.3608]
[1733186063889,0.15562119,95809.0,95808.0,0.3608]
[1733186064296,0.059165,95809.0,95808.0,0.412966]
[1733186064496,0.059165,95809.0,95808.0,0.3608]
[1733186064709,0.21511442,95809.0,95808.0,0.3608]
[1733186065094,0.21511442,95809.0,95808.0,0.3619803]
[1733186065805,0.21711442,95809.0,95808.0,0.4151453]
[1733186066099,0.21711442,95809.0,95808.0,0.4161453]
[1733186066100,0.22511442,95809.0,95808.0,0.4161453]
[1733186066401,0.17294942,95809.0,95808.0,0.4161453]
[1733186066597,0.16494942,95809.0,95808.0,0.4151453]
[1733186066799,0.17294942,95809.0,95808.0,0.4161453]
[1733186067396,0.16394942,95809.0,95808.0,0.3629803]
[1733186067701,0.17294942,95809.0,95808.0,0.3639803]
[1733186072403,0.17294942,95809.0,95808.0,0.4161453]
[1733186073401,0.17294942,95809.0,95808.0,0.7769453]
[1733186073402,0.017,95809.0,95808.0,0.7769453]
[1733186081008,0.0026,95827.0,95826.0,0.052156]
[1733186081311,8.974e-05,95828.0,95827.0,0.052155]
[1733186081713,0.15560212,95828.0,95827.0,0.052155]
[1733186082310,0.15560212,95828.0,95827.0,0.0533353]
[1733186082815,0.15660212,95828.0,95827.0,0.0593353]
[1733186083010,0.15660212,95828.0,95827.0,0.0663353]
[1733186083011,0.15760212,95828.0,95827.0,0.0663353]
[1733186083205,0.15660212,95828.0,95827.0,0.0603353]
[1733186083410,0.16560212,95828.0,95827.0,0.0613353]
[1733186084411,0.16460212,95828.0,95827.0,0.0543353]
[1733186084618,0.17060212,95828.0,95827.0,0.0553353]
[1733186085418,0.17060212,95828.0,95827.0,0.0543353]
[1733186085622,0.17060212,95828.0,95827.0,0.0553353]
[1733186095120,0.0026,95846.0,95838.0,0.052149]
[1733186095317,0.052139,95858.0,95831.0,0.052153]
[1733186095318,0.0653,95855.0,95854.0,0.05214]
[1733186095521,0.0653,95855.0,95854.0,0.41294]
[1733186095726,0.22159096,95855.0,95854.0,0.41294]
[1733186096222,0.15629096,95855.0,95854.0,0.41294]
[1733186096421,0.15629096,95855.0,95854.0,0.4141203]
[1733186096716,0.001,95855.0,95854.0,0.4231203]
[1733186097133,0.15820021,95855.0,95854.0,0.4231203]
[1733186097631,0.15920021,95855.0,95854.0,0.4321203]
[1733186098224,0.15920021,95855.0,95854.0,0.45101987]
[1733186099821,0.15920021,95855.0,95854.0,0.58381987]
[1733186100218,0.15920021,95855.0,95854.0,0.4321203]
[1733186100419,0.21134021,95855.0,95854.0,0.3799803]
[1733186100631,0.21134021,95855.0,95854.0,0.4321203]
[1733186100831,0.15920021,95855.0,95854.0,0.4321203]
[1733186106038,0.002,95855.0,95854.0,0.4321203]
[1733186107633,0.052147,95844.0,95843.0,0.052146]
[1733186107941,0.15574987,95844.0,95836.0,0.1328]
[1733186108139,0.15574987,95844.0,95843.0,0.052146]
[1733186108339,0.052144,95847.0,95846.0,0.052145]
[1733186108634,0.15743733,95847.0,95837.0,0.23741121]
[1733186108944,0.15743733,95853.0,95843.0,0.001]
[1733186109129,0.008,95844.0,95843.0,0.053146]
[1733186109336,0.017,95844.0,95843.0,0.414946]
[1733186109532,0.1729713,95844.0,95843.0,0.414946]
[1733186109734,0.1729713,95844.0,95843.0,0.413946]
[1733186109735,0.1649713,95844.0,95843.0,0.413946]
[1733186110037,0.017,95847.0,95846.0,0.052145]
[1733186110349,0.0026,95863.0,95862.0,0.052136]
[1733186110529,0.3608,95881.0,95876.0,0.052129]
[1733186110734,0.00056001,95881.0,95880.0,0.052126]
[1733186110938,0.15592773,95876.0,95872.0,0.3608]
[1733186111242,0.15592773,95880.0,95879.0,0.052127]
[1733186111440,0.15592773,95887.0,95886.0,0.052123]
[1733186111632,0.083317,95897.0,95896.0,0.052118]
[1733186111941,0.24079325,95897.0,95896.0,0.052118]
[1733186112331,0.26176621,95897.0,95896.0,0.052118]
[1733186112534,0.15747625,95897.0,95896.0,0.052118]
[1733186112938,0.15627403,95899.0,95898.0,0.052117]
[1733186113142,0.1,95900.0,95896.0,0.015]
[1733186113450,0.1,95900.0,95899.0,0.052116]
[1733186113742,0.25557348,95900.0,95899.0,0.052116]
[1733186115540,0.30768848,95900.0,95899.0,0.052116]
[1733186115740,0.30768848,95900.0,95899.0,0.006]
[1733186115940,0.052122,95888.0,95881.0,0.052126]
[1733186116241,0.15552856,95887.0,95879.0,0.00156438]
[1733186116445,0.21962856,95887.0,95879.0,0.00156438]
[1733186116645,0.052126,95882.0,95881.0,0.052126]
[1733186117034,0.20924459,95882.0,95881.0,0.052126]
[1733186118946,0.21424459,95882.0,95881.0,0.052126]
[1733186119447,0.052126,95880.0,95879.0,0.00156438]
[1733186119640,0.62621399,95882.0,95865.0,0.13276]
[1733186119842,0.052134,95867.0,95866.0,0.052134]
[1733186120253,0.20813592,95867.0,95866.0,0.052134]
[1733186120743,0.15600192,95867.0,95866.0,0.052134]
[1733186120937,0.20813492,95867.0,95866.0,0.052134]
[1733186121250,0.052133,95867.0,95866.0,0.052134]
[1733186121450,0.15553467,95867.0,95856.0,0.439]
[1733186121752,0.008,95867.0,95866.0,0.053134]
[1733186122253,0.2169542,95867.0,95866.0,0.053134]
[1733186122445,0.2249542,95867.0,95866.0,0.054134]
[1733186122637,0.2229542,95867.0,95866.0,0.053134]
[1733186124250,0.2249542,95867.0,95866.0,0.002]
[1733186124645,0.32926592,95867.0,95866.0,0.002]
[1733186127549,0.2249542,95867.0,95866.0,0.054134]
[1733186128150,0.1728212,95867.0,95866.0,0.054134]
[1733186130253,0.016,95867.0,95866.0,0.414934]
[1733186131056,0.016,95867.0,95866.0,0.775734]
[1733186132153,0.016,95867.0,95866.0,0.908654]
[1733186134959,0.068133,95867.0,95866.0,0.7236]
[1733186135259,0.22398625,95867.0,95866.0,0.7236]
[1733186136657,0.22398625,95867.0,95866.0,0.775734]
[1733186138062,0.17185325,95867.0,95866.0,0.775734]
[1733186142155,0.016,95867.0,95866.0,0.775734]
[1733186143866,0.016,95867.0,95866.0,0.908614]
[1733186150566,0.0026,95885.0,95884.0,0.052125]
[1733186150890,0.00056001,95895.0,95894.0,0.052119]
[1733186151170,0.1,95900.0,95899.0,0.052116]
[1733186151569,0.25653108,95900.0,95899.0,0.052116]
[1733186152764,0.25653108,95900.0,95899.0,0.055116]
[1733186153366,0.25653108,95900.0,95899.0,0.059116]
[1733186153769,0.00056001,95914.0,95899.0,0.059116]
[1733186153970,0.052104,95922.0,95921.0,0.052104]
[1733186154375,0.20769541,95922.0,95921.0,0.052104]
[1733186154672,0.15559141,95922.0,95921.0,0.052104]
[1733186155063,0.15548029,95924.0,95921.0,0.052104]
[1733186155260,0.15548029,95924.0,95923.0,0.052103]
[1733186155465,0.0304,95925.0,95924.0,0.052102]
[1733186155875,0.18755863,95925.0,95924.0,0.052102]
[1733186156474,0.18755863,95925.0,95924.0,0.061102]
[1733186156769,0.18855863,95925.0,95924.0,0.069102]
[1733186156968,0.24066063,95925.0,95924.0,0.069102]
[1733186157163,0.34490928,95925.0,95924.0,0.017]
[1733186157575,0.34490928,95925.0,95924.0,0.069102]
[1733186160081,0.18855863,95925.0,95924.0,0.069102]
[1733186160880,0.15815863,95925.0,95924.0,0.429902]
[1733186161577,0.15815863,95925.0,95924.0,0.44888404]
[1733186161778,0.001,95925.0,95924.0,0.44888404]
[1733186162967,0.0026,95941.0,95924.0,0.39678204]
[1733186163165,0.052093,95942.0,95930.0,0.052099]
[1733186163377,0.052093,95942.0,95928.0,0.10461121]
[1733186163378,0.15687525,95937.0,95936.0,0.052096]
[1733186163682,0.15687525,95940.0,95939.0,0.052094]
[1733186163976,0.052093,95941.0,95939.0,0.052094]
[1733186164369,0.15711247,95940.0,95939.0,0.052094]
[1733186164771,0.15719625,95943.0,95942.0,0.052093]
[1733186165076,0.0026,95965.0,95942.0,0.7216]
[1733186165268,0.36125,95973.0,95970.0,0.052077]
[1733186165470,0.36125,95973.0,95972.0,0.052076]
[1733186165669,0.00045,95973.0,95972.0,0.052076]
[1733186165870,0.15749982,95973.0,95972.0,0.052076]
[1733186166078,0.0026,95991.0,95990.0,0.052067]
[1733186166282,0.3608,96016.0,95990.0,0.052067]
[1733186166283,0.0654,96010.0,95999.0,0.052062]
[1733186166578,0.02086609,96013.0,95999.0,0.412862]
[1733186166771,0.052053,96016.0,95999.0,0.412862]
[1733186166967,0.0327,96019.0,95999.0,0.412862]
[1733186167377,0.052053,96016.0,95999.0,0.544822]
[1733186168276,0.0327,96019.0,95999.0,0.544822]
[1733186168467,0.0327,96019.0,95999.0,0.545822]
[1733186168672,0.084751,96019.0,95999.0,0.545822]
[1733186168875,0.0327,96019.0,95999.0,0.549822]
[1733186169177,0.0026,96019.0,95999.0,0.49776]
[1733186169378,0.0343,96028.0,96021.0,0.05205]
[1733186169582,0.0317,96028.0,96021.0,0.05205]
[1733186169768,0.26117778,96023.0,96021.0,0.05205]
[1733186169970,0.15701058,96027.0,96021.0,0.05205]
[1733186170267,0.15701058,96022.0,96021.0,0.05205]
[1733186170670,0.15701058,96025.0,96023.0,0.052049]
[1733186170875,0.0317,96028.0,96021.0,0.006]
[1733186171072,0.15597151,96026.0,96025.0,0.052048]
[1733186171474,0.0317,96028.0,96021.0,0.006]
[1733186171681,0.0317,96028.0,96027.0,0.052047]
[1733186171985,0.13192,96035.0,96027.0,0.052047]
[1733186172279,0.1555456,96031.0,96027.0,0.052047]
[1733186172480,0.25968568,96031.0,96027.0,0.052047]
[1733186172683,0.13188,96037.0,96025.0,0.001]
[1733186172974,0.25969196,96030.0,96029.0,0.052045]
[1733186173177,0.15555188,96030.0,96029.0,0.052045]
[1733186173394,0.1041352,96030.0,96027.0,0.001]
[1733186173584,0.25968708,96030.0,96027.0,0.001]
[1733186173788,0.15555188,96030.0,96027.0,0.001]
[1733186173973,0.0309,96038.0,96027.0,0.001]
[1733186173974,0.13188,96042.0,96029.0,0.3608]
[1733186174170,0.00056001,96050.0,96048.0,0.052035]
[1733186174380,0.00056001,96050.0,96038.0,0.3608]
[1733186174381,0.3608,96057.0,96054.0,0.052032]
[1733186174982,0.26006562,96056.0,96054.0,0.052032]
[1733186175574,0.26006562,96056.0,96055.0,0.3608]
[1733186175872,0.26003635,96056.0,96055.0,0.35572017]
[1733186176281,0.39187635,96056.0,96054.0,0.054032]
[1733186176486,0.39187635,96056.0,96054.0,0.002]
[1733186176679,0.39487635,96056.0,96055.0,0.001]
[1733186177073,0.26303635,96056.0,96055.0,0.001]
[1733186177279,0.003,96056.0,96055.0,0.3618]
[1733186177696,0.0026,96075.0,96074.0,0.052021]
[1733186177982,0.13184,96081.0,96063.0,0.052027]
[1733186177983,0.13184,96081.0,96080.0,0.052018]
[1733186178179,0.3608,96088.0,96071.0,0.3608]
[1733186178383,0.13184,96087.0,96083.0,0.052016]
[1733186178577,0.39303881,96087.0,96083.0,0.052016]
[1733186178781,0.13184,96086.0,96083.0,0.052016]
[1733186179083,0.15556179,96085.0,96083.0,0.052016]
[1733186179570,0.2596363,96085.0,96083.0,0.052016]
[1733186180075,0.2596363,96085.0,96083.0,0.058016]
[1733186181283,0.1318,96084.0,96083.0,0.058016]
[1733186181583,0.051992,96129.0,96083.0,0.058016]
[1733186181584,0.1,96100.0,96083.0,0.067016]
[1733186181880,0.00056001,96099.0,96096.0,0.3608]
[1733186182188,0.1,96100.0,96098.0,0.052009]
[1733186182680,0.15644662,96099.0,96098.0,0.052009]
[1733186184381,0.15644662,96099.0,96098.0,0.057009]
[1733186185385,0.15644662,96099.0,96098.0,0.062009]
[1733186186280,0.1,96100.0,96098.0,0.062009]
[1733186186683,0.1556794,96099.0,96098.0,0.062009]
[1733186186982,0.1,96100.0,96099.0,0.052008]
[1733186187780,0.1,96100.0,96099.0,0.116608]
[1733186188182,0.1,96100.0,96099.0,0.0342]
[1733186188477,0.1,96100.0,96099.0,0.001]
[1733186189288,0.1,96100.0,96098.0,0.002]
[1733186189484,0.052009,96098.0,96097.0,0.3608]
[1733186189789,0.052009,96098.0,96097.0,0.41281]
[1733186190289,0.052009,96098.0,96097.0,0.3608]
[1733186191291,0.052009,96098.0,96097.0,0.41281]
[1733186191476,0.052009,96098.0,96097.0,0.42181]
[1733186191675,0.052009,96098.0,96097.0,0.3698]
[1733186192082,0.052009,96098.0,96097.0,0.42181]
[1733186192786,0.052009,96098.0,96097.0,0.3788]
[1733186193689,0.052009,96098.0,96097.0,0.43081]
[1733186194194,0.052009,96098.0,96097.0,0.42181]
[1733186195082,0.1,96100.0,96099.0,0.052009]
[1733186195479,0.152008,96100.0,96099.0,0.052009]
[1733186196080,0.1,96100.0,96099.0,0.052009]
[1733186196285,0.1,96100.0,96099.0,0.053009]
[1733186197995,0.1,96100.0,96099.0,0.070009]
[1733186198186,0.152009,96100.0,96099.0,0.070009]
[1733186198697,0.152009,96100.0,96099.0,0.061009]
[1733186198888,0.152009,96100.0,96099.0,0.070009]
[1733186201795,0.152009,96100.0,96099.0,0.25496968]
[1733186202293,0.152009,96100.0,96099.0,0.25496874]
[1733186202498,0.152009,96100.0,96099.0,0.070009]
[1733186202890,0.152009,96100.0,96099.0,0.018]
[1733186203089,0.77276744,96100.0,96099.0,0.20314583]
[1733186203295,0.90480744,96100.0,96099.0,0.018]
[1733186203999,0.77276744,96100.0,96099.0,0.018]
[1733186204189,0.90480744,96100.0,96099.0,0.25515483]
[1733186204394,0.90480744,96100.0,96099.0,0.070009]
[1733186204988,0.85279844,96100.0,96099.0,0.070009]
[1733186205198,0.1,96100.0,96099.0,0.070009]
[1733186205393,0.152009,96100.0,96099.0,0.54577761]
[1733186206193,0.1,96100.0,96099.0,0.54577761]
[1733186207297,0.09984979,96100.0,96099.0,0.54577761]
[1733186207488,0.09984979,96100.0,96099.0,0.91990389]
[1733186207999,0.09984979,96100.0,96099.0,0.54577761]
[1733186208196,0.052008,96102.0,96101.0,0.052008]
[1733186208389,0.052008,96102.0,96101.0,0.412808]
[1733186209695,0.052007,96108.0,96107.0,0.052004]
[1733186210697,0.054596,96125.0,96124.0,0.051996]
[1733186210891,0.051996,96125.0,96124.0,0.051996]
[1733186211295,0.051993,96133.0,96132.0,0.051989]
[1733186211693,0.2081194,96133.0,96132.0,0.051989]
[1733186213602,0.2081194,96133.0,96132.0,0.053989]
[1733186214197,0.2081194,96133.0,96132.0,0.057989]
[1733186214600,0.2081194,96133.0,96132.0,0.006]
[1733186215498,0.2081194,96133.0,96132.0,0.002]
[1733186215700,0.2081194,96133.0,96132.0,0.01]
[1733186216399,0.2081194,96133.0,96132.0,0.19586012]
[1733186216704,0.31214249,96133.0,96132.0,0.20286012]
[1733186216903,0.31214249,96133.0,96132.0,0.017]
[1733186217203,0.31214249,96133.0,96124.0,0.18586012]
[1733186217401,0.31214249,96133.0,96122.0,0.18586012]
[1733186217402,0.051996,96123.0,96122.0,0.18586012]
[1733186217909,0.051997,96122.0,96121.0,0.18586012]
[1733186218108,0.051998,96121.0,96120.0,0.18586012]
[1733186218300,0.051998,96121.0,96116.0,0.18586012]
[1733186218505,0.4128,96117.0,96116.0,0.18586012]
[1733186218701,0.4128,96117.0,96112.0,0.0015606]
[1733186218702,0.3608,96117.0,96112.0,0.18742072]
[1733186219008,0.052002,96113.0,96112.0,0.18742072]
[1733186219308,0.052002,96113.0,96112.0,0.0015606]
[1733186220300,0.15604673,96113.0,96112.0,0.0015606]
[1733186220703,0.15604673,96113.0,96112.0,0.0105606]